bitfinex-derivatives/quotes_SOLF0:USTF0_20251006
["timestamp","ask_amount","ask_price","bid_price","bid_amount"]
[1759772397116,107.46950153,236.5,236.43,3.8043]
[1759772397420,107.46950153,236.5,236.41,3.8046]
[1759772397615,107.46950153,236.5,236.42,106.9]
[1759772397816,107.46950153,236.5,236.42,110.7043]
[1759772398214,107.46950153,236.5,236.43,106.88]
[1759772398515,107.46950153,236.5,236.44,106.88]
[1759772398917,107.46950153,236.5,236.38,7.43]
[1759772399209,107.46950153,236.5,236.39,166.0673]
[1759772399413,99.78950153,236.5,236.41,7.43]
[1759772400316,99.78950153,236.5,236.45,3.804]
[1759772400516,7.68,236.49,236.41,7.43]
[1759772400718,7.68,236.49,236.42,106.88]
[1759772401019,7.68,236.49,236.43,106.88]
[1759772401216,7.68,236.49,236.41,7.43]
[1759772401419,7.68,236.49,236.37,59.1925]
[1759772401420,7.68,236.49,236.37,66.6225]
[1759772401609,7.68,236.49,236.38,106.88]
[1759772401814,7.68,236.49,236.39,66.6175]
[1759772402609,7.68,236.49,236.42,3.8044]
[1759772403214,7.68,236.49,236.43,3.8042]
[1759772403414,7.68,236.49,236.44,114.31]
[1759772404120,7.68,236.49,236.44,118.114]
[1759772404423,99.78950153,236.5,236.44,106.88]
[1759772405214,99.78950153,236.5,236.45,3.8039]
[1759772405423,7.68,236.49,236.4,7.43]
[1759772405625,7.68,236.49,236.41,106.86]
[1759772406124,7.68,236.49,236.43,3.8041]
[1759772406525,7.68,236.49,236.41,106.86]
[1759772406819,7.68,236.49,236.41,110.6645]
[1759772407123,7.68,236.49,236.41,106.86]
[1759772407319,7.68,236.49,236.4,7.43]
[1759772407525,7.68,236.49,236.41,106.86]
[1759772408620,99.78950153,236.5,236.48,3.8034]
[1759772408930,99.78950153,236.5,236.49,106.86]
[1759772411120,99.78950153,236.5,236.48,110.6433]
[1759772412623,99.78950153,236.5,236.49,106.84]
[1759772413222,99.78950153,236.5,236.49,114.27]
[1759772415032,99.78950153,236.5,236.49,7.43]
[1759772415224,99.78950153,236.5,236.49,114.27]
[1759772415827,99.78950153,236.5,236.49,7.43]
[1759772416122,99.78950153,236.5,236.49,114.25]
[1759772416627,99.78950153,236.5,236.49,106.82]
[1759772417018,99.78950153,236.5,236.49,114.25]
[1759772418826,99.78950153,236.5,236.49,106.82]
[1759772419819,99.78950153,236.5,236.48,3.8033]
[1759772420018,99.78950153,236.5,236.49,106.82]
[1759772420419,99.78950153,236.5,236.49,7.48]
[1759772420625,99.78950153,236.5,236.49,114.28]
[1759772421529,99.78950153,236.5,236.49,106.8]
[1759772422441,86.72210153,236.5,236.49,114.28]
[1759772422626,80.20190153,236.5,236.49,114.28]
[1759772423131,42.01590153,236.5,236.49,114.28]
[1759772423426,21.12320153,236.5,236.49,114.28]
[1759772427440,1.53e-06,236.5,236.49,119.38270269]
[1759772427641,1.53e-06,236.5,236.49,114.7]
[1759772428042,1.53e-06,236.5,236.49,14.89376918]
[1759772428242,7.94,236.62,236.52,7.48]
[1759772428443,7.94,236.62,236.55,3.52896898]
[1759772429041,7.94,236.62,236.56,106.76]
[1759772429243,7.94,236.65,236.57,110.562]
[1759772429740,7.94,236.68,236.58,106.76]
[1759772430040,7.94,236.64,236.55,3.52896898]
[1759772430247,3.00298152,236.65,236.56,106.76]
[1759772430446,3.00298152,236.65,236.57,106.76]
[1759772430846,7.94,236.64,236.57,106.76]
[1759772431048,3.8014,236.62,236.57,106.76]
[1759772431251,7.94,236.61,236.58,106.74]
[1759772431643,3.8014,236.62,236.58,106.74]
[1759772431845,7.94,236.61,236.58,106.74]
[1759772432045,11.7415,236.61,236.53,7.33156898]
[1759772432249,14.74448152,236.61,236.54,106.74]
[1759772433845,6.80448152,236.61,236.54,106.74]
[1759772434054,7.94,236.56,236.49,3.52896898]
[1759772434253,7.94,236.56,236.46,4.70529197]
[1759772434254,7.94,236.56,236.5,106.74]
[1759772434648,11.7422,236.56,236.5,106.74]
[1759772435146,7.94,236.55,236.51,106.72]
[1759772435742,3.8022,236.56,236.51,106.72]
[1759772435941,7.47,236.55,236.47,3.52896898]
[1759772436148,3.00298152,236.53,236.45,52.62]
[1759772436469,10.47298152,236.55,236.45,56.14896898]
[1759772437653,7.47,236.5,236.43,3.52896898]
[1759772437859,7.47,236.5,236.44,106.72]
[1759772439354,10.47298152,236.54,236.45,11.554]
[1759772439574,10.47298152,236.54,236.45,118.274]
[1759772440352,10.47298152,236.54,236.45,11.554]
[1759772440554,14.27568152,236.54,236.45,114.47]
[1759772440855,10.47298152,236.54,236.45,7.75]
[1759772441165,3.803,236.51,236.43,7.33326898]
[1759772441355,7.47,236.5,236.44,103.76]
[1759772442555,3.8033,236.49,236.42,3.52896898]
[1759772442746,10.47298152,236.5,236.32,12.92806317]
[1759772442747,7.47,236.45,236.4,3.52896898]
[1759772442949,7.47,236.45,236.39,3.52896898]
[1759772443150,7.47,236.45,236.39,80.62896898]
[1759772443355,3.00298152,236.46,236.39,84.43376898]
[1759772443656,7.47,236.49,236.39,80.62896898]
[1759772443957,7.47,236.49,236.4,114.47]
[1759772444254,7.47,236.49,236.4,7.75]
[1759772444455,7.47,236.49,236.4,114.45]
[1759772444657,7.47,236.49,236.41,3.8046]
[1759772446658,7.47,236.49,236.4,7.75]
[1759772448658,11.2734,236.49,236.4,7.75]
[1759772450155,11.2734,236.49,236.4,11.5546]
[1759772451064,7.47,236.49,236.41,3.8045]
[1759772451265,3.00298152,236.48,236.41,3.8045]
[1759772451764,3.00298152,236.48,236.4,7.75]
[1759772452754,7.47,236.49,236.4,7.75]
[1759772452962,7.47,236.49,236.43,11.0542]
[1759772453153,7.6029,236.61,236.43,11.0542]
[1759772453154,7.32,236.53,236.43,11.0542]
[1759772453353,10.32298152,236.53,236.43,7.25]
[1759772454164,3.00298152,236.49,236.43,7.25]
[1759772454366,10.32298152,236.49,236.4,3.52896898]
[1759772454666,10.32298152,236.49,236.42,3.8043]
[1759772455560,10.32298152,236.49,236.4,7.25]
[1759772456663,10.32298152,236.49,236.42,3.8043]
[1759772456957,3.00298152,236.53,236.41,10.77896898]
[1759772457166,1.92244829,236.5,236.41,10.77896898]
[1759772457459,1.92244829,236.5,236.44,7.25]
[1759772458060,1.92244829,236.5,236.47,7.25]
[1759772458561,1.92244829,236.5,236.39,4.70529197]
[1759772458562,1.92244829,236.5,236.43,7.25]
[1759772458764,9.24244829,236.5,236.45,11.054]
[1759772459064,9.24244829,236.5,236.46,7.25]
[1759772459361,7.32,236.49,236.43,3.8043]
[1759772460292,7.32,236.49,236.4,113.91]
[1759772460293,7.32,236.49,236.45,7.25]
[1759772460865,9.24244829,236.5,236.44,3.804]
[1759772462458,9.24244829,236.5,236.46,7.25]
[1759772462965,7.32,236.49,236.42,7.25]
[1759772463166,7.32,236.46,236.39,3.52896898]
[1759772463361,7.32,236.46,236.38,7.25]
[1759772464166,7.32,236.46,236.41,7.25]
[1759772464373,9.24244829,236.47,236.41,7.25]
[1759772465667,9.24244829,236.47,236.42,3.8043]
[1759772465970,9.24244829,236.47,236.42,11.0543]
[1759772466968,7.32,236.47,236.42,11.0543]
[1759772467163,1.92244829,236.49,236.42,7.25]
[1759772467372,9.24244829,236.52,236.42,7.25]
[1759772468169,9.24244829,236.52,236.46,3.8037]
[1759772469685,1.92244829,236.49,236.44,3.8041]
[1759772469872,7.32,236.48,236.4,106.62]
[1759772470072,7.32,236.48,236.4,110.14896898]
[1759772470372,7.32,236.48,236.43,11.0542]
[1759772471174,7.32,236.48,236.44,3.804]
[1759772473773,7.32,236.53,236.44,66.425]
[1759772473977,1.92244829,236.58,236.47,3.52896898]
[1759772474176,7.32,236.6,236.54,3.8024]
[1759772474572,7.32,236.6,236.51,7.25]
[1759772475169,7.32,236.6,236.51,10.77896898]
[1759772475676,1.92244829,236.61,236.55,3.8022]
[1759772477273,7.32,236.62,236.57,7.25]
[1759772477771,1.92244829,236.63,236.57,7.25]
[1759772477988,1.92244829,236.6,236.51,113.81]
[1759772478577,7.18,236.67,236.54,59.1508]
[1759772478776,1.92244829,236.66,236.56,7.5]
[1759772479078,1.92244829,236.64,236.56,7.5]
[1759772479679,9.10244829,236.67,236.59,7.5]
[1759772479873,7.18,236.67,236.59,7.5]
[1759772480076,9.10244829,236.67,236.59,7.5]
[1759772480975,1.92244829,236.67,236.6,3.8016]
[1759772482271,1.92244829,236.64,236.57,106.54]
[1759772482477,1.92244829,236.61,236.54,7.5]
[1759772482678,1.92244829,236.58,236.54,7.5]
[1759772483073,7.18,236.61,236.51,86.5]
[1759772483379,1.92244829,236.62,236.52,7.5]
[1759772483772,1.92244829,236.61,236.52,102.7828]
[1759772483977,1.92244829,236.61,236.52,11.3028]
[1759772485681,1.92244829,236.61,236.54,3.8025]
[1759772486281,1.92244829,236.61,236.55,7.5]
[1759772488405,7.18,236.62,236.55,7.5]
[1759772488580,9.10244829,236.62,236.55,7.5]
[1759772490279,9.10244829,236.62,236.52,3.8028]
[1759772490496,1.92244829,236.59,236.52,3.8028]
[1759772491484,1.92244829,236.56,236.51,7.5]
[1759772491691,1.92244829,236.53,236.46,7.5]
[1759772492286,1.92244829,236.53,236.46,11.3037]
[1759772492480,1.92244829,236.53,236.46,7.5]
[1759772493390,1.92244829,236.5,236.42,14.8236058]
[1759772493585,1.92244829,236.5,236.42,11.3043]
[1759772494383,7.18,236.52,236.42,11.3043]
[1759772494589,1.92244829,236.5,236.42,11.3043]
[1759772495794,7.18,236.52,236.44,3.804]
[1759772496392,7.18,236.52,236.45,7.17]
[1759772496593,1.92244829,236.5,236.41,14.4938058]
[1759772496894,1.92244829,236.5,236.41,10.9745]
[1759772497596,1.92244829,236.44,236.41,7.17]
[1759772497787,1.92244829,236.44,236.37,3.5193058]
[1759772497788,1.92244829,236.44,236.37,10.6893058]
[1759772497986,1.92244829,236.44,236.37,7.17]
[1759772498186,1.92244829,236.44,236.39,3.8049]
[1759772498390,1.92244829,236.47,236.39,10.9749]
[1759772499688,1.92244829,236.48,236.42,7.17]
[1759772500495,1.92244829,236.45,236.37,7.17]
[1759772501592,1.92244829,236.45,236.39,3.8049]
[1759772502096,1.92244829,236.5,236.38,7.17]
[1759772502297,1.92244829,236.5,236.4,7.17]
[1759772502997,1.92244829,236.5,236.42,3.8044]
[1759772503193,9.32244829,236.47,236.42,3.8044]
[1759772503600,9.32244829,236.47,236.4,7.17]
[1759772503991,1.92244829,236.47,236.42,3.8044]
[1759772504197,1.92244829,236.5,236.42,3.8044]
[1759772504602,1.92244829,236.5,236.4,7.17]
[1759772504899,7.4,236.51,236.4,1.92244829]
[1759772505094,7.4,236.51,236.41,7.17]
[1759772505601,7.4,236.51,236.44,3.8041]
[1759772505996,7.4,236.51,236.41,7.17]
[1759772507600,7.4,236.51,236.42,3.8044]
[1759772508301,7.4,236.51,236.43,3.8041]
[1759772508805,7.4,236.51,236.44,7.57]
[1759772510003,1.92244829,236.52,236.45,3.804]
[1759772511596,1.92244829,236.52,236.44,7.57]
[1759772512695,9.21244829,236.52,236.47,3.8035]
[1759772513001,9.21244829,236.52,236.47,11.3735]
[1759772515498,7.29,236.51,236.47,11.3735]
[1759772516410,1.92244829,236.52,236.47,11.3735]
[1759772516613,7.29,236.51,236.45,3.804]
[1759772520510,7.29,236.51,236.43,11.3742]
[1759772521217,7.29,236.51,236.44,3.804]
[1759772522211,7.29,236.51,236.46,3.8038]
[1759772522417,7.29,236.59,236.47,7.57]
[1759772523221,11.0918,236.59,236.48,3.8035]
[1759772523422,3.0038002,236.58,236.48,3.8035]
[1759772523619,7.29,236.57,236.48,3.8035]
[1759772524512,7.29,236.57,236.47,7.57]
[1759772524908,7.29,236.57,236.51,3.8029]
[1759772525122,7.29,236.57,236.51,11.3729]
[1759772530215,11.42831244,236.6,236.51,3.8029]
[1759772530523,11.42831244,236.6,236.52,7.57]
[1759772531022,11.42831244,236.6,236.53,3.8027]
[1759772532616,11.42831244,236.6,236.52,7.57]
[1759772532826,7.29,236.59,236.49,3.5193058]
[1759772533123,7.29,236.55,236.47,7.57]
[1759772533427,7.29,236.55,236.47,11.0893058]
[1759772533822,7.29,236.55,236.47,7.57]
[1759772534125,11.42831244,236.6,236.43,3.5193058]
[1759772534126,3.0038002,236.52,236.43,3.5193058]
[1759772534324,3.0038002,236.52,236.42,3.5193058]
[1759772534325,7.29,236.51,236.42,3.5193058]
[1759772534927,11.0931,236.51,236.42,3.5193058]
[1759772535129,11.0931,236.51,236.43,3.5193058]
[1759772536326,11.0931,236.51,236.42,3.5193058]
[1759772536827,7.29,236.51,236.42,3.5193058]
[1759772538026,7.29,236.51,236.43,3.5193058]
[1759772538327,7.59,236.56,236.44,7.42]
[1759772538529,7.59,236.56,236.45,3.5193058]
[1759772539028,7.59,236.56,236.44,10.9393058]
[1759772539230,7.59,236.52,236.44,7.42]
[1759772539730,7.59,236.52,236.44,10.9393058]
[1759772542826,7.59,236.52,236.44,7.42]
[1759772543427,7.59,236.52,236.44,10.9393058]
[1759772548233,11.393,236.52,236.44,10.9393058]
[1759772548434,7.59,236.52,236.44,10.9393058]
[1759772548937,7.59,236.52,236.44,7.42]
[1759772549327,3.8031,236.51,236.44,7.42]
[1759772551035,3.8031,236.51,236.44,10.95159743]
[1759772553341,11.3933,236.5,236.44,3.53159743]
[1759772553541,11.3933,236.5,236.42,7.33589743]
[1759772553842,11.3933,236.5,236.42,3.53159743]
[1759772554037,11.3933,236.5,236.41,3.53159743]
[1759772555048,11.3933,236.5,236.42,3.53159743]
[1759772555937,11.3933,236.5,236.36,59.1948]
[1759772555938,7.24,236.44,236.38,3.53159743]
[1759772556134,7.24,236.44,236.35,7.7]
[1759772556343,3.8048,236.4,236.34,3.53159743]
[1759772557037,10.2438002,236.41,236.34,3.53159743]
[1759772558335,10.2438002,236.41,236.33,3.53159743]
[1759772558940,7.24,236.46,236.34,7.7]
[1759772559241,7.24,236.46,236.37,11.23159743]
[1759772559631,7.24,236.46,236.37,7.7]
[1759772559836,10.2438002,236.46,236.34,3.53159743]
[1759772560730,3.8044,236.43,236.34,3.53159743]
[1759772561143,3.8047,236.41,236.34,3.53159743]
[1759772561343,3.8047,236.41,236.33,15.03739743]
[1759772561940,7.24,236.42,236.33,11.23159743]
[1759772562142,7.24,236.49,236.34,11.23159743]
[1759772562344,7.24,236.49,236.34,7.7]
[1759772562345,3.0038002,236.44,236.34,7.7]
[1759772562538,11.0443,236.43,236.34,7.7]
[1759772564042,3.8046,236.41,236.33,3.8058]
[1759772564243,7.24,236.4,236.33,11.5058]
[1759772564444,7.24,236.4,236.34,3.8056]
[1759772564938,7.24,236.4,236.33,7.7]
[1759772565138,10.2438002,236.4,236.32,3.8061]
[1759772565744,7.24,236.4,236.32,3.8061]
[1759772567143,7.24,236.4,236.3,3.53159743]
[1759772567144,11.045,236.4,236.3,7.33799743]
[1759772567340,11.045,236.4,236.3,3.8064]
[1759772567841,11.045,236.4,236.31,3.8061]
[1759772570744,3.8051,236.39,236.31,3.8061]
[1759772570944,7.64,236.38,236.31,3.8061]
[1759772571642,11.4452,236.38,236.29,11.5065]
[1759772574256,10.6438002,236.35,236.24,3.53159743]
[1759772574455,3.0038002,236.35,236.21,10.98159743]
[1759772574965,7.64,236.34,236.21,10.98159743]
[1759772575259,7.64,236.34,236.21,7.45]
[1759772575653,7.64,236.32,236.24,3.8072]
[1759772576260,7.64,236.32,236.21,11.2577]
[1759772576556,7.64,236.32,236.21,7.45]
[1759772577464,7.64,236.32,236.22,3.8075]
[1759772579086,1.92601738,236.29,236.22,3.8075]
[1759772579556,9.56601738,236.29,236.21,7.45]
[1759772579963,9.45975062,236.58,236.21,7.45]
[1759772579964,1.92601738,236.34,236.22,7.45]
[1759772580161,1.92601738,236.34,236.24,7.45]
[1759772580864,1.92601738,236.31,236.24,7.45]
[1759772581061,9.56601738,236.28,236.24,7.45]
[1759772581262,7.64,236.27,236.2,7.45]
[1759772581457,7.64,236.27,236.19,3.53159743]
[1759772581458,11.4469,236.27,236.17,315.33]
[1759772581665,1.92601738,236.26,236.17,7.45]
[1759772581870,7.64,236.27,236.17,7.45]
[1759772582570,7.64,236.27,236.18,3.8083]
[1759772584564,7.64,236.27,236.17,7.45]
[1759772585067,7.64,236.27,236.14,3.53159743]
[1759772585266,1.92601738,236.22,236.13,7.45]
[1759772586170,1.92601738,236.22,236.13,11.259]
[1759772586365,1.92601738,236.22,236.13,7.45]
[1759772586366,7.64,236.21,236.13,7.45]
[1759772588395,7.64,236.21,236.13,11.259]
[1759772592376,1.92601738,236.19,236.13,7.45]
[1759772592570,7.64,236.18,236.13,7.45]
[1759772592769,9.56601738,236.19,236.13,7.45]
[1759772593775,1.92601738,236.16,236.09,7.45]
[1759772594076,7.64,236.19,236.09,7.45]
[1759772594271,1.92601738,236.17,236.09,7.45]
[1759772594677,5.73451738,236.17,236.09,7.45]
[1759772594879,5.73451738,236.17,236.02,59.2802]
[1759772594880,7.64,236.16,236.02,66.7302]
[1759772595176,59.2298,236.23,236.02,20.22175006]
[1759772595177,1.92601738,236.11,236.02,20.22175006]
[1759772595378,11.4485,236.17,236.03,7.45]
[1759772595579,1.92601738,236.14,236.03,7.45]
[1759772596077,1.92601738,236.15,236.03,7.45]
[1759772596678,1.92601738,236.15,236.07,3.81]
[1759772598677,7.4,236.14,236.06,7.45]
[1759772598974,1.92601738,236.12,235.99,7.76]
[1759772599175,1.92601738,236.12,236.01,1.92601738]
[1759772599380,9.32601738,236.12,236.02,7.76]
[1759772600581,9.32601738,236.12,236.02,11.5709]
[1759772601780,9.32601738,236.12,236.02,7.76]
[1759772602480,9.32601738,236.12,236.03,3.8107]
[1759772602682,9.32601738,236.12,236.04,7.76]
[1759772603583,1.92601738,236.16,236.04,7.76]
[1759772604685,1.92601738,236.16,236.07,3.81]
[1759772605080,7.4,236.12,236.04,7.76]
[1759772606586,7.4,236.12,236.04,11.5704]
[1759772606888,1.92601738,236.16,236.04,7.76]
[1759772607583,1.92601738,236.16,236.07,3.81]
[1759772607783,1.92601738,236.16,236.07,11.57]
[1759772608486,7.4,236.15,236.07,11.57]
[1759772612188,7.4,236.15,236.07,7.76]
[1759772612692,11.209,236.15,236.07,7.76]
[1759772612899,7.4,236.15,236.07,7.76]
[1759772613101,7.4,236.12,236.03,11.5707]
[1759772618992,7.4,236.12,236.03,7.76]
[1759772619194,1.92601738,236.15,236.03,7.76]
[1759772619393,1.92601738,236.15,236.07,3.81]
[1759772619601,1.92601738,236.15,236.07,11.37]
[1759772619994,1.92601738,236.15,236.08,3.8098]
[1759772621497,1.92601738,236.15,236.02,3.53159743]
[1759772621498,1.92601738,236.12,236.02,3.53159743]
[1759772621701,7.63,236.1,236.01,7.56]
[1759772624202,1.92601738,236.09,236.01,7.56]
[1759772626604,1.92601738,236.09,236.02,7.34239743]
[1759772626813,7.63,236.1,236.02,3.8108]
[1759772627199,71.68011237,236.27,236.04,7.56]
[1759772627200,9.55601738,236.14,236.04,7.56]
[1759772627497,9.55601738,236.14,236.01,64.74021481]
[1759772627498,9.55601738,236.14,236.05,7.56]
[1759772628396,9.55601738,236.14,236.05,11.3704]
[1759772629098,1.92601738,236.11,236.05,7.56]
[1759772629298,9.20601738,236.11,236.05,7.56]
[1759772631207,9.20601738,236.15,236.05,11.09159743]
[1759772631405,9.20601738,236.15,236.07,3.53159743]
[1759772631608,9.20601738,236.15,236.06,3.53159743]
[1759772632403,9.20601738,236.15,236.07,3.53159743]
[1759772632603,9.20601738,236.15,236.08,3.8099]
[1759772633513,9.20601738,236.15,236.08,7.34149743]
[1759772633702,9.20601738,236.15,236.08,3.8099]
[1759772634011,1.92601738,236.19,236.11,7.26]
[1759772634805,1.92601738,236.16,236.09,3.53159743]
[1759772636406,1.92601738,236.16,236.1,3.53159743]
[1759772637105,1.92601738,236.16,236.09,3.53159743]
[1759772637315,1.92601738,236.16,236.1,3.53159743]
[1759772637712,1.92601738,236.16,236.08,3.53159743]
[1759772637713,7.28,236.15,236.08,3.53159743]
[1759772637911,7.28,236.15,236.07,10.79159743]
[1759772638115,1.92601738,236.13,236.07,10.79159743]
[1759772638316,1.92601738,236.13,236.06,7.34179743]
[1759772638317,9.20601738,236.13,236.06,7.34179743]
[1759772638518,9.20601738,236.13,236.07,3.53159743]
[1759772638919,9.20601738,236.13,236.06,7.34179743]
[1759772639624,9.20601738,236.13,236.07,3.53159743]
[1759772640718,9.20601738,236.13,236.06,3.53159743]
[1759772641022,7.28,236.13,236.06,3.53159743]
[1759772641223,7.28,236.13,236.07,3.53159743]
[1759772641819,7.28,236.11,236.06,3.53159743]
[1759772642021,7.28,236.11,236.06,10.79159743]
[1759772643121,7.28,236.11,236.07,7.26]
[1759772644923,7.28,236.16,236.07,3.53159743]
[1759772645226,7.28,236.16,236.09,14.60119743]
[1759772645626,7.28,236.16,236.09,10.79159743]
[1759772645828,7.28,236.16,236.07,7.34169743]
[1759772646540,3.809,236.14,236.08,3.53159743]
[1759772646922,3.809,236.14,236.05,15.77569197]
[1759772646923,3.809,236.14,236.07,3.53159743]
[1759772647422,3.809,236.14,236.08,3.53159743]
[1759772648718,3.809,236.14,236.07,3.53159743]
[1759772649026,3.809,236.14,236.08,3.53159743]
[1759772649224,3.809,236.14,236.07,3.53159743]
[1759772649425,11.0893,236.12,236.07,10.79159743]
[1759772649626,11.0893,236.12,236.08,10.79159743]
[1759772650026,3.809,236.14,236.09,7.26]
[1759772650230,8.33861008,236.18,236.1,7.26]
[1759772650431,1.05861008,236.17,236.1,10.81750444]
[1759772651123,1.05861008,236.17,236.1,7.26]
[1759772651424,7.28,236.18,236.1,7.26]
[1759772652025,7.28,236.14,236.09,3.55750444]
[1759772652225,3.8088,236.15,236.08,7.36730444]
[1759772652529,4.86737258,236.15,236.08,7.36730444]
[1759772652728,4.86737258,236.15,236.08,3.8098]
[1759772653330,4.86737258,236.15,236.08,7.36730444]
[1759772653831,4.86737258,236.15,236.07,3.55750444]
[1759772654424,4.86737258,236.15,236.06,11.0702]
[1759772654425,4.86737258,236.15,236.08,3.55750444]
[1759772655330,4.86737258,236.15,236.09,7.26]
[1759772655331,1.05857258,236.15,236.09,7.26]
[1759772656029,7.28,236.16,236.09,7.26]
[1759772656231,1.05857258,236.17,236.11,7.26]
[1759772656425,1.05857258,236.19,236.11,10.81750444]
[1759772657833,1.05857258,236.19,236.11,14.62680444]
[1759772659438,4.86687258,236.19,236.11,14.62680444]
[1759772659735,4.86687258,236.19,236.11,11.0693]
[1759772661340,4.86687258,236.19,236.11,14.62680444]
[1759772662434,4.86687258,236.19,236.11,10.81750444]
[1759772662634,4.86687258,236.19,236.11,7.26]
[1759772662635,3.8084,236.18,236.11,7.26]
[1759772663534,1.05857258,236.19,236.11,7.26]
[1759772663732,7.88,236.25,236.14,59.2504]
[1759772663932,23.70593286,236.31,236.18,3.55750444]
[1759772664137,1.05807819,236.3,236.19,11.00750444]
[1759772664438,4.86457819,236.3,236.21,3.8077]
[1759772664738,3.8065,236.3,236.21,7.36520444]
[1759772664934,7.88,236.31,236.22,7.45]
[1759772665139,105.7,236.34,236.24,7.45]
[1759772665341,105.7,236.34,236.25,3.55750444]
[1759772665538,105.7,236.34,236.26,11.00750444]
[1759772665740,105.7,236.34,236.26,7.45]
[1759772665937,105.7,236.34,236.27,3.8068]
[1759772666546,105.7,236.34,236.26,11.257]
[1759772667837,105.7,236.34,236.26,3.807]
[1759772668040,105.7,236.34,236.27,7.45]
[1759772669147,10.89405017,236.39,236.23,3.55750444]
[1759772669148,7.88,236.39,236.29,7.45]
[1759772669744,7.88,236.39,236.31,7.45]
[1759772672742,11.685,236.39,236.31,7.45]
[1759772673148,7.88,236.39,236.31,7.45]
[1759772675456,7.88438445,236.41,236.31,7.45]
[1759772676256,15.56438445,236.41,236.31,7.45]
[1759772677351,3.8048,236.4,236.31,7.45]
[1759772677552,7.68,236.39,236.31,7.45]
[1759772678447,7.68,236.39,236.31,11.2562]
[1759772678646,7.88438445,236.41,236.29,7.89]
[1759772679652,7.88438445,236.41,236.34,7.89]
[1759772680361,7.88438445,236.41,236.35,3.8055]
[1759772680551,7.88438445,236.41,236.34,7.89]
[1759772687367,7.68,236.4,236.29,7.89]
[1759772688562,7.36,236.39,236.29,7.89]
[1759772689072,11.1649,236.39,236.29,7.89]
[1759772690565,11.1649,236.39,236.31,3.8062]
[1759772693364,3.8053,236.37,236.29,11.6965]
[1759772695467,7.36,236.43,236.25,7.19]
[1759772695661,7.36,236.43,236.29,7.19]
[1759772695863,11.1656,236.36,236.24,3.50134923]
[1759772696161,11.1656,236.36,236.23,7.19]
[1759772696162,7.36,236.36,236.23,7.19]
[1759772696369,3.01405017,236.33,236.23,7.19]
[1759772696573,7.36,236.28,236.17,7.19]
[1759772696766,7.36,236.32,236.17,7.19]
[1759772697266,7.36,236.32,236.18,7.19]
[1759772697867,11.1661,236.32,236.23,7.19]
[1759772698670,3.8064,236.3,236.23,7.19]
[1759772698872,11.1664,236.3,236.23,7.19]
[1759772699272,7.36,236.3,236.23,7.19]
[1759772699667,7.36,236.23,236.16,7.19]
[1759772701170,13.09462174,236.23,236.16,7.19]
[1759772701372,13.09462174,236.23,236.09,7.19]
[1759772701373,1.92712174,236.17,236.09,7.19]
[1759772701777,5.73562174,236.17,236.09,7.19]
[1759772702074,7.36,236.25,236.09,9.11712174]
[1759772702274,1.92712174,236.23,236.1,7.19]
[1759772702474,7.36,236.22,236.12,3.8092]
[1759772702777,7.36,236.22,236.13,7.19]
[1759772702978,7.36,236.22,236.14,3.809]
[1759772703168,1.92712174,236.23,236.13,7.19]
[1759772704572,1.92712174,236.23,236.03,6.99376918]
[1759772704573,7.36,236.19,236.08,112.61]
[1759772705073,9.28712174,236.19,236.09,7.19]